[Event "*** SCC Grand Prix: Titled Tuesday Blitz"]
[Site "Chess.com"]
[Date "2020.08.11"]
[Round "3"]
[White "PavelShkapenko"]
[Black "laboratorio25"]
[Result "1/2-1/2"]
[WhiteElo "2651"]
[BlackElo "2426"]
[TimeControl "180+1"]
[EndTime "10:29:40 PDT"]
[Termination "Game drawn by repetition"]

1. e4 {[%clk 0:03:00.9]} 1... c5 {[%clk 0:02:59.1]} 2. c3 {[%clk 0:03:00.4]}
2... Nf6 {[%clk 0:02:58.4]} 3. e5 {[%clk 0:02:59.2]} 3... Nd5 {[%clk 0:02:58.6]}
4. d4 {[%clk 0:02:59.8]} 4... cxd4 {[%clk 0:02:59.5]} 5. cxd4 {[%clk 0:03:00.3]}
5... d6 {[%clk 0:02:59.8]} 6. Nf3 {[%clk 0:02:59.1]} 6... Nc6 {[%clk 0:02:59.4]}
7. Bc4 {[%clk 0:02:54.5]} 7... e6 {[%clk 0:02:59.6]} 8. O-O {[%clk 0:02:53.3]}
8... Be7 {[%clk 0:02:59.3]} 9. Bd2 {[%clk 0:02:53.5]} 9... a6 {[%clk 0:02:44.1]}
10. Nc3 {[%clk 0:02:52.4]} 10... Nxc3 {[%clk 0:02:42]} 11. Bxc3 {[%clk 0:02:53]}
11... b5 {[%clk 0:02:38.5]} 12. Bd3 {[%clk 0:02:53.1]} 12... Bb7 {[%clk
0:02:36.5]} 13. Qe2 {[%clk 0:02:46.8]} 13... d5 {[%clk 0:02:29.5]} 14. Bd2
{[%clk 0:02:44.5]} 14... Rc8 {[%clk 0:02:25.7]} 15. a4 {[%clk 0:02:40.4]} 15...
bxa4 {[%clk 0:02:06.2]} 16. Rxa4 {[%clk 0:02:23.4]} 16... a5 {[%clk 0:02:06.3]}
17. Rfa1 {[%clk 0:02:17.9]} 17... Bb4 {[%clk 0:02:00.2]} 18. Bxb4 {[%clk
0:02:05.8]} 18... axb4 {[%clk 0:01:54.6]} 19. h4 {[%clk 0:01:45.8]} 19... O-O
{[%clk 0:01:51.7]} 20. h5 {[%clk 0:01:23.9]} 20... Qb6 {[%clk 0:01:46.1]} 21.
Qe3 {[%clk 0:01:22.3]} 21... h6 {[%clk 0:01:35.4]} 22. Bb1 {[%clk 0:01:16.8]}
22... Ne7 {[%clk 0:01:25.7]} 23. Qd3 {[%clk 0:01:11.5]} 23... Rc1+ {[%clk
0:01:24.4]} 24. Kh2 {[%clk 0:01:11.9]} 24... g6 {[%clk 0:00:53.6]} 25. Qe3
{[%clk 0:01:11.5]} 25... Rxb1 {[%clk 0:00:33.7]} 26. Rxb1 {[%clk 0:01:08.7]}
26... Bc6 {[%clk 0:00:29.3]} 27. Raa1 {[%clk 0:00:43.4]} 27... Nf5 {[%clk
0:00:27]} 28. Qd2 {[%clk 0:00:38.8]} 28... g5 {[%clk 0:00:20.5]} 29. g4 {[%clk
0:00:38.4]} 29... Ne7 {[%clk 0:00:18.9]} 30. Nxg5 {[%clk 0:00:35.7]} 30... hxg5
{[%clk 0:00:15.8]} 31. Qxg5+ {[%clk 0:00:35.8]} 31... Kh7 {[%clk 0:00:15.8]} 32.
Qxe7 {[%clk 0:00:35.6]} 32... Qxd4 {[%clk 0:00:15.1]} 33. Qxf8 {[%clk
0:00:22.2]} 33... Qxf2+ {[%clk 0:00:14.9]} 34. Kh3 {[%clk 0:00:22.5]} 34... Qf3+
{[%clk 0:00:15.3]} 35. Kh4 {[%clk 0:00:22.7]} 35... Qf2+ {[%clk 0:00:15.7]} 36.
Kg5 {[%clk 0:00:20.3]} 36... Qd2+ {[%clk 0:00:14.9]} 37. Kf6 {[%clk 0:00:18.6]}
37... Qf2+ {[%clk 0:00:12.7]} 38. Ke7 {[%clk 0:00:16.8]} 38... Qc5+ {[%clk
0:00:12.7]} 39. Kxf7 {[%clk 0:00:16.6]} 39... Qf2+ {[%clk 0:00:12.8]} 40. Ke7
{[%clk 0:00:13.3]} 40... Qc5+ {[%clk 0:00:13]} 41. Kf7 {[%clk 0:00:13.2]} 41...
Qf2+ {[%clk 0:00:13]} 42. Ke7 {[%clk 0:00:11.9]} 42... Qc5+ {[%clk 0:00:13.3]}
43. Kf7 {[%clk 0:00:11.6]} 1/2-1/2

[Event "*** SCC Grand Prix: Titled Tuesday Blitz"]
[Site "Chess.com"]
[Date "2020.08.11"]
[Round "3"]
[White "KingChess345"]
[Black "meoluoi91"]
[Result "0-1"]
[WhiteElo "2176"]
[BlackElo "2492"]
[TimeControl "180+1"]
[EndTime "10:29:40 PDT"]
[Termination "meoluoi91 won on time"]

1. d4 {[%clk 0:03:00.9]} 1... d5 {[%clk 0:02:59.2]} 2. Nf3 {[%clk 0:03:01.3]}
2... c6 {[%clk 0:02:58.9]} 3. g3 {[%clk 0:03:01.6]} 3... Bf5 {[%clk 0:02:58.4]}
4. Bg2 {[%clk 0:03:02.5]} 4... e6 {[%clk 0:02:58.6]} 5. O-O {[%clk 0:03:02.8]}
5... Nd7 {[%clk 0:02:58.9]} 6. c4 {[%clk 0:03:03.5]} 6... Ngf6 {[%clk
0:02:58.9]} 7. Qb3 {[%clk 0:03:03.9]} 7... Qb6 {[%clk 0:02:48.4]} 8. c5 {[%clk
0:03:03.7]} 8... Qxb3 {[%clk 0:02:46.5]} 9. axb3 {[%clk 0:03:04.1]} 9... Be7
{[%clk 0:02:46.8]} 10. b4 {[%clk 0:03:03.9]} 10... O-O {[%clk 0:02:46.8]} 11.
Nc3 {[%clk 0:03:01.8]} 11... a6 {[%clk 0:02:47]} 12. Nd2 {[%clk 0:03:01.6]}
12... h6 {[%clk 0:02:45.4]} 13. Nb3 {[%clk 0:03:01]} 13... Bd8 {[%clk
0:02:41.6]} 14. Na5 {[%clk 0:02:59.1]} 14... Bxa5 {[%clk 0:02:40.3]} 15. bxa5
{[%clk 0:03:00]} 15... Ne8 {[%clk 0:02:36.7]} 16. Ra4 {[%clk 0:02:40.3]} 16...
Nc7 {[%clk 0:02:32.1]} 17. f3 {[%clk 0:02:32.8]} 17... Bg6 {[%clk 0:02:30.4]}
18. e4 {[%clk 0:02:30.2]} 18... dxe4 {[%clk 0:02:30.1]} 19. fxe4 {[%clk
0:02:29.9]} 19... Nb5 {[%clk 0:02:30.2]} 20. Nxb5 {[%clk 0:02:11]} 20... axb5
{[%clk 0:02:29.9]} 21. Ra3 {[%clk 0:02:08.8]} 21... Nf6 {[%clk 0:02:29.9]} 22.
e5 {[%clk 0:01:46.4]} 22... Nd5 {[%clk 0:02:26.7]} 23. Bxd5 {[%clk 0:01:44.8]}
23... exd5 {[%clk 0:02:23.7]} 24. b4 {[%clk 0:01:44.8]} 24... Be4 {[%clk
0:02:18.6]} 25. g4 {[%clk 0:01:31.9]} 25... Kh7 {[%clk 0:02:18.6]} 26. Rg3
{[%clk 0:01:28.2]} 26... f6 {[%clk 0:02:14.7]} 27. exf6 {[%clk 0:01:26.5]} 27...
Rxf6 {[%clk 0:02:12.5]} 28. Rxf6 {[%clk 0:01:23.8]} 28... gxf6 {[%clk
0:02:13.4]} 29. Bf4 {[%clk 0:01:22.9]} 29... Kg6 {[%clk 0:02:09.9]} 30. Kf2
{[%clk 0:01:15.5]} 30... Re8 {[%clk 0:01:51.3]} 31. h4 {[%clk 0:01:08.9]} 31...
Re7 {[%clk 0:01:34.8]} 32. g5 {[%clk 0:00:35.6]} 32... fxg5 {[%clk 0:01:33.3]}
33. hxg5 {[%clk 0:00:36.5]} 33... h5 {[%clk 0:01:33.4]} 34. Be5 {[%clk
0:00:32.9]} 34... Re8 {[%clk 0:01:30.2]} 35. Bf6 {[%clk 0:00:28.7]} 35... Kf5
{[%clk 0:01:14.8]} 36. Rh3 {[%clk 0:00:13.5]} 36... Kg6 {[%clk 0:01:10.8]} 37.
Kg3 {[%clk 0:00:12.3]} 37... Bf5 {[%clk 0:01:09.5]} 38. Rh2 {[%clk 0:00:10.1]}
38... Re3+ {[%clk 0:01:05.7]} 39. Kf4 {[%clk 0:00:09.9]} 39... Re4+ {[%clk
0:00:59]} 40. Kf3 {[%clk 0:00:09.2]} 40... Bg4+ {[%clk 0:00:57.2]} 41. Kg3
{[%clk 0:00:09.5]} 41... Re1 {[%clk 0:00:40.4]} 42. Ra2 {[%clk 0:00:07.3]} 42...
Bc8 {[%clk 0:00:38.5]} 43. Rf2 {[%clk 0:00:04.6]} 43... Re3+ {[%clk 0:00:37.6]}
44. Kf4 {[%clk 0:00:02.1]} 44... Re4+ {[%clk 0:00:37.7]} 45. Kg3 {[%clk
0:00:02.1]} 45... h4+ {[%clk 0:00:37.9]} 46. Kh2 {[%clk 0:00:01]} 46... h3
{[%clk 0:00:34.7]} 0-1

[Event "*** SCC Grand Prix: Titled Tuesday Blitz"]
[Site "Chess.com"]
[Date "2020.08.11"]
[Round "3"]
[White "korkmaz16"]
[Black "viktorskliarov"]
[Result "0-1"]
[WhiteElo "2346"]
[BlackElo "2572"]
[TimeControl "180+1"]
[EndTime "10:29:41 PDT"]
[Termination "viktorskliarov won by resignation"]

1. e4 {[%clk 0:02:59.2]} 1... c5 {[%clk 0:02:53.9]} 2. Nc3 {[%clk 0:02:53.9]}
2... Nc6 {[%clk 0:02:52.3]} 3. f4 {[%clk 0:02:53.9]} 3... g6 {[%clk 0:02:52]} 4.
Nf3 {[%clk 0:02:54]} 4... Bg7 {[%clk 0:02:52.3]} 5. Bb5 {[%clk 0:02:54.1]} 5...
Nd4 {[%clk 0:02:49.6]} 6. O-O {[%clk 0:02:54.2]} 6... a6 {[%clk 0:02:49]} 7. Bd3
{[%clk 0:02:53.9]} 7... b5 {[%clk 0:02:47.3]} 8. e5 {[%clk 0:02:49.5]} 8... Bb7
{[%clk 0:02:43.9]} 9. Nxd4 {[%clk 0:02:48]} 9... cxd4 {[%clk 0:02:43.6]} 10. Ne4
{[%clk 0:02:31]} 10... Qb6 {[%clk 0:02:41.7]} 11. Kh1 {[%clk 0:02:27.2]} 11...
Nh6 {[%clk 0:02:39.2]} 12. b4 {[%clk 0:02:13.1]} 12... Nf5 {[%clk 0:02:26]} 13.
Nc5 {[%clk 0:02:03.7]} 13... Bd5 {[%clk 0:02:04]} 14. Bxf5 {[%clk 0:01:39.7]}
14... gxf5 {[%clk 0:02:03]} 15. d3 {[%clk 0:01:39.5]} 15... Rg8 {[%clk
0:01:42.5]} 16. Rf2 {[%clk 0:01:30.1]} 16... Qg6 {[%clk 0:01:05.2]} 17. Qe2
{[%clk 0:01:26.7]} 17... O-O-O {[%clk 0:00:56.2]} 18. Bb2 {[%clk 0:01:24.3]}
18... d6 {[%clk 0:00:55.1]} 19. exd6 {[%clk 0:00:52.9]} 19... exd6 {[%clk
0:00:56]} 20. Nb3 {[%clk 0:00:52.3]} 20... Rde8 {[%clk 0:00:54.5]} 21. Qf1
{[%clk 0:00:51.8]} 21... Bh6 {[%clk 0:00:51.7]} 22. Nxd4 {[%clk 0:00:15.7]}
22... Bg7 {[%clk 0:00:30.2]} 23. Rc1 {[%clk 0:00:13.9]} 23... Bxd4 {[%clk
0:00:28.5]} 24. Bxd4 {[%clk 0:00:13.7]} 24... Kb7 {[%clk 0:00:28.9]} 25. c4
{[%clk 0:00:13.7]} 25... Bc6 {[%clk 0:00:28.3]} 26. a4 {[%clk 0:00:12.5]} 26...
bxc4 {[%clk 0:00:26]} 27. dxc4 {[%clk 0:00:10.7]} 27... Qh5 {[%clk 0:00:19.4]}
28. b5 {[%clk 0:00:09.9]} 28... Be4 {[%clk 0:00:19.4]} 29. bxa6+ {[%clk
0:00:09.7]} 29... Ka8 {[%clk 0:00:19.7]} 30. Bc5 {[%clk 0:00:09.7]} 30... dxc5
{[%clk 0:00:18.8]} 31. Qg1 {[%clk 0:00:07.8]} 31... Rxg2 {[%clk 0:00:16.1]} 32.
Rxg2 {[%clk 0:00:07.8]} 32... Rg8 {[%clk 0:00:16.6]} 33. Rc2 {[%clk 0:00:08.3]}
33... Rxg2 {[%clk 0:00:15.1]} 34. Rxg2 {[%clk 0:00:09.2]} 34... Ka7 {[%clk
0:00:14]} 35. Qf2 {[%clk 0:00:09.1]} 35... Qd1+ {[%clk 0:00:12.9]} 36. Qg1
{[%clk 0:00:10]} 36... Qf3 {[%clk 0:00:12.2]} 37. h3 {[%clk 0:00:09.9]} 37...
Qxh3+ {[%clk 0:00:12]} 38. Qh2 {[%clk 0:00:10.8]} 38... Bxg2+ {[%clk 0:00:12]}
39. Kg1 {[%clk 0:00:11.4]} 39... Qxh2+ {[%clk 0:00:12.7]} 40. Kxh2 {[%clk
0:00:11.7]} 40... Bf1 {[%clk 0:00:13.6]} 41. Kg3 {[%clk 0:00:12.6]} 41... Bxc4
{[%clk 0:00:14.4]} 42. Kh4 {[%clk 0:00:13.5]} 42... Be6 {[%clk 0:00:15.2]} 43.
Kg5 {[%clk 0:00:14.4]} 43... Kxa6 {[%clk 0:00:16.1]} 0-1

[Event "*** SCC Grand Prix: Titled Tuesday Blitz"]
[Site "Chess.com"]
[Date "2020.08.11"]
[Round "3"]
[White "igorknyazev"]
[Black "SRDR8290"]
[Result "0-1"]
[WhiteElo "1931"]
[BlackElo "2384"]
[TimeControl "180+1"]
[EndTime "10:29:41 PDT"]
[Termination "SRDR8290 won by resignation"]

1. e4 {[%clk 0:03:00.9]} 1... e6 {[%clk 0:02:59.3]} 2. d3 {[%clk 0:02:53.4]}
2... d5 {[%clk 0:02:59.6]} 3. Nd2 {[%clk 0:02:54]} 3... Nf6 {[%clk 0:02:59.3]}
4. f4 {[%clk 0:02:52.1]} 4... c5 {[%clk 0:02:56.5]} 5. Ngf3 {[%clk 0:02:50.5]}
5... Nc6 {[%clk 0:02:56.6]} 6. g3 {[%clk 0:02:46.6]} 6... Be7 {[%clk 0:02:54.1]}
7. Bg2 {[%clk 0:02:43.2]} 7... O-O {[%clk 0:02:51.4]} 8. O-O {[%clk 0:02:43.5]}
8... b5 {[%clk 0:02:51.2]} 9. e5 {[%clk 0:02:40.6]} 9... Nd7 {[%clk 0:02:50.6]}
10. c4 {[%clk 0:02:36.2]} 10... bxc4 {[%clk 0:02:44.5]} 11. dxc4 {[%clk
0:02:35.5]} 11... Nb6 {[%clk 0:02:45.1]} 12. b3 {[%clk 0:02:21.2]} 12... Bb7
{[%clk 0:02:43.2]} 13. cxd5 {[%clk 0:02:14.3]} 13... exd5 {[%clk 0:02:42.9]} 14.
Bb2 {[%clk 0:02:09.1]} 14... Nb4 {[%clk 0:02:32.8]} 15. Rb1 {[%clk 0:01:40.4]}
15... Ba6 {[%clk 0:02:30.4]} 16. f5 {[%clk 0:01:23.6]} 16... Bxf1 {[%clk
0:02:25.1]} 17. Qxf1 {[%clk 0:01:22.5]} 17... Re8 {[%clk 0:02:14.6]} 18. f6
{[%clk 0:01:07.8]} 18... Bf8 {[%clk 0:02:14.8]} 19. Ng5 {[%clk 0:01:01.4]} 19...
g6 {[%clk 0:02:12.2]} 20. e6 {[%clk 0:00:57.6]} 20... Rxe6 {[%clk 0:01:54.3]}
21. Nxe6 {[%clk 0:00:56]} 21... Qe8 {[%clk 0:01:54.5]} 22. Nc7 {[%clk
0:00:38.9]} 22... Qe3+ {[%clk 0:01:53.3]} 23. Qf2 {[%clk 0:00:39.2]} 23... Qxf2+
{[%clk 0:01:53.6]} 24. Kxf2 {[%clk 0:00:38.6]} 24... Rc8 {[%clk 0:01:54.2]} 25.
Nb5 {[%clk 0:00:36.5]} 25... a6 {[%clk 0:01:51.7]} 26. Nc3 {[%clk 0:00:35.7]}
26... c4 {[%clk 0:01:48]} 27. a3 {[%clk 0:00:34.6]} 27... Nd3+ {[%clk
0:01:45.5]} 28. Ke2 {[%clk 0:00:32.6]} 28... Nxb2 {[%clk 0:01:44.6]} 29. Rxb2
{[%clk 0:00:32.3]} 29... Bxa3 {[%clk 0:01:45]} 30. Ra2 {[%clk 0:00:31.1]} 30...
Bb4 {[%clk 0:01:45]} 31. Nxd5 {[%clk 0:00:30.7]} 31... Nxd5 {[%clk 0:01:43.7]}
32. Bxd5 {[%clk 0:00:30.7]} 32... c3 {[%clk 0:01:43]} 33. Nc4 {[%clk 0:00:29.9]}
33... a5 {[%clk 0:01:41.6]} 34. Kd3 {[%clk 0:00:28.3]} 34... Rd8 {[%clk
0:01:41.6]} 35. Ke4 {[%clk 0:00:27.9]} 35... Re8+ {[%clk 0:01:41.7]} 36. Kf3
{[%clk 0:00:27.5]} 36... Rd8 {[%clk 0:01:41]} 37. Be4 {[%clk 0:00:26.3]} 37...
h5 {[%clk 0:01:38.1]} 38. Re2 {[%clk 0:00:23.8]} 38... g5 {[%clk 0:01:30.8]} 39.
g4 {[%clk 0:00:21]} 39... h4 {[%clk 0:01:28]} 40. Bc2 {[%clk 0:00:19.7]} 40...
Bc5 {[%clk 0:01:24.1]} 41. Ne5 {[%clk 0:00:19]} 41... Bd4 {[%clk 0:01:22.9]} 42.
Nc6 {[%clk 0:00:18.6]} 42... Rc8 {[%clk 0:01:17.3]} 43. Nxd4 {[%clk 0:00:18.1]}
43... Kf8 {[%clk 0:01:16.9]} 44. Nb5 {[%clk 0:00:17.2]} 44... Rc6 {[%clk
0:01:16.2]} 45. Re4 {[%clk 0:00:15.3]} 45... Rxf6+ {[%clk 0:01:17.1]} 46. Ke3
{[%clk 0:00:14.9]} 46... Rb6 {[%clk 0:01:16.7]} 47. Nd4 {[%clk 0:00:14.5]} 47...
Rf6 {[%clk 0:01:16.8]} 48. Ne2 {[%clk 0:00:14.5]} 48... Rf1 {[%clk 0:01:16.6]}
49. Nxc3 {[%clk 0:00:14.6]} 49... Rh1 {[%clk 0:01:17]} 50. Nd5 {[%clk
0:00:13.7]} 50... Rxh2 {[%clk 0:01:17.7]} 51. Bd3 {[%clk 0:00:13.6]} 51... Rh3+
{[%clk 0:01:17.7]} 52. Kd4 {[%clk 0:00:13.7]} 52... Rg3 {[%clk 0:01:17.7]} 53.
Ke5 {[%clk 0:00:13.3]} 53... Rxd3 {[%clk 0:01:17.1]} 54. Ne3 {[%clk 0:00:09.9]}
54... h3 {[%clk 0:01:16.3]} 55. Nf1 {[%clk 0:00:08.7]} 55... Rf3 {[%clk
0:01:15.7]} 56. Nh2 {[%clk 0:00:07.4]} 56... Rf2 {[%clk 0:01:16.2]} 57. Re3
{[%clk 0:00:04.9]} 57... Rxh2 {[%clk 0:01:16]} 58. Kf6 {[%clk 0:00:05.2]} 58...
Rf2+ {[%clk 0:01:14.2]} 59. Kxg5 {[%clk 0:00:05.3]} 59... h2 {[%clk 0:01:14.8]}
60. Kh4 {[%clk 0:00:05.4]} 60... h1=Q+ {[%clk 0:01:14.8]} 0-1

[Event "*** SCC Grand Prix: Titled Tuesday Blitz"]
[Site "Chess.com"]
[Date "2020.08.11"]
[Round "3"]
[White "Twitch_ElhamBlitz05"]
[Black "Chesswizard_2007"]
[Result "1-0"]
[WhiteElo "2762"]
[BlackElo "2507"]
[TimeControl "180+1"]
[EndTime "10:29:42 PDT"]
[Termination "Twitch_ElhamBlitz05 won by resignation"]

1. e4 {[%clk 0:03:00.9]} 1... e5 {[%clk 0:02:58]} 2. Nc3 {[%clk 0:03:00.8]} 2...
Nf6 {[%clk 0:02:57.4]} 3. Bc4 {[%clk 0:03:01.2]} 3... c6 {[%clk 0:02:52.3]} 4.
d4 {[%clk 0:03:01.1]} 4... exd4 {[%clk 0:02:49.2]} 5. Qxd4 {[%clk 0:03:01.4]}
5... d6 {[%clk 0:02:44.8]} 6. Nf3 {[%clk 0:03:01.1]} 6... Be7 {[%clk 0:02:43.5]}
7. Bg5 {[%clk 0:03:00.8]} 7... h6 {[%clk 0:02:42.1]} 8. Bf4 {[%clk 0:02:59]}
8... O-O {[%clk 0:02:40.3]} 9. O-O-O {[%clk 0:02:58.6]} 9... b5 {[%clk
0:02:40.1]} 10. Be2 {[%clk 0:02:40.7]} 10... c5 {[%clk 0:02:36]} 11. Qd3 {[%clk
0:02:34]} 11... b4 {[%clk 0:02:34.2]} 12. Nd5 {[%clk 0:02:33.5]} 12... Ba6
{[%clk 0:02:19.7]} 13. Qd2 {[%clk 0:02:02.8]} 13... Nxd5 {[%clk 0:02:08.8]} 14.
Bxa6 {[%clk 0:01:38.1]} 14... Nc3 {[%clk 0:01:27]} 15. Bb7 {[%clk 0:01:33.3]}
15... Qa5 {[%clk 0:01:11.8]} 16. Qd3 {[%clk 0:00:57.9]} 16... Nxd1 {[%clk
0:01:04.6]} 17. Rxd1 {[%clk 0:00:50.8]} 17... Nd7 {[%clk 0:01:03.3]} 18. Bxa8
{[%clk 0:00:50.2]} 18... Rxa8 {[%clk 0:01:04.2]} 19. Bxd6 {[%clk 0:00:32.9]}
19... Bxd6 {[%clk 0:01:03.7]} 20. Qxd6 {[%clk 0:00:33.8]} 20... Nb6 {[%clk
0:01:04.5]} 21. Kb1 {[%clk 0:00:28.1]} 21... Na4 {[%clk 0:00:59.4]} 22. Qc6
{[%clk 0:00:08.9]} 22... Rb8 {[%clk 0:00:56.2]} 23. Qd6 {[%clk 0:00:09.2]} 23...
Nc3+ {[%clk 0:00:51.8]} 24. bxc3 {[%clk 0:00:08.6]} 24... Rb6 {[%clk 0:00:50.5]}
25. Qd8+ {[%clk 0:00:06.4]} 25... Kh7 {[%clk 0:00:51.1]} 26. c4 {[%clk
0:00:06.9]} 26... Qa4 {[%clk 0:00:50.3]} 27. Qd3 {[%clk 0:00:06.5]} 27... b3
{[%clk 0:00:48.9]} 28. cxb3 {[%clk 0:00:06.3]} 28... Qa3 {[%clk 0:00:48.7]} 29.
e5+ {[%clk 0:00:06.5]} 29... g6 {[%clk 0:00:48.6]} 30. h4 {[%clk 0:00:06.9]}
30... a5 {[%clk 0:00:48]} 31. Nd2 {[%clk 0:00:04.2]} 31... a4 {[%clk 0:00:47.6]}
32. e6 {[%clk 0:00:04.2]} 32... Rxe6 {[%clk 0:00:46]} 33. h5 {[%clk 0:00:04]}
33... axb3 {[%clk 0:00:44]} 34. hxg6+ {[%clk 0:00:04.5]} 34... Kg7 {[%clk
0:00:41.4]} 35. Nxb3 {[%clk 0:00:05.4]} 35... Rxg6 {[%clk 0:00:39.6]} 36. g3
{[%clk 0:00:04.4]} 36... Ra6 {[%clk 0:00:39.1]} 37. Qc2 {[%clk 0:00:04.1]} 37...
Re6 {[%clk 0:00:34.5]} 38. Qb2+ {[%clk 0:00:04]} 38... Qxb2+ {[%clk 0:00:34.5]}
39. Kxb2 {[%clk 0:00:04.9]} 39... Re4 {[%clk 0:00:34.6]} 40. Rc1 {[%clk
0:00:05]} 40... Re5 {[%clk 0:00:33.5]} 41. a4 {[%clk 0:00:05.4]} 41... h5 {[%clk
0:00:34]} 42. a5 {[%clk 0:00:05.9]} 42... h4 {[%clk 0:00:34.2]} 43. gxh4 {[%clk
0:00:05.7]} 43... Re4 {[%clk 0:00:34.1]} 44. a6 {[%clk 0:00:06]} 44... Rxh4
{[%clk 0:00:33.9]} 45. a7 {[%clk 0:00:06.6]} 45... Rh8 {[%clk 0:00:34.8]} 46.
Nxc5 {[%clk 0:00:06.5]} 46... Ra8 {[%clk 0:00:35.7]} 47. Ra1 {[%clk 0:00:07.1]}
47... Rxa7 {[%clk 0:00:36.1]} 48. Rxa7 {[%clk 0:00:07.2]} 48... Kg6 {[%clk
0:00:36.1]} 49. Nd3 {[%clk 0:00:07.5]} 49... Kf5 {[%clk 0:00:37]} 50. c5 {[%clk
0:00:08.4]} 50... Ke4 {[%clk 0:00:37.9]} 51. c6 {[%clk 0:00:09.3]} 51... Kf3
{[%clk 0:00:38.3]} 52. c7 {[%clk 0:00:10.2]} 52... Ke2 {[%clk 0:00:39.2]} 53.
c8=Q {[%clk 0:00:11.1]} 53... f5 {[%clk 0:00:40.1]} 54. Qxf5 {[%clk 0:00:11]}
54... Kf1 {[%clk 0:00:40.5]} 55. Ra1+ {[%clk 0:00:11.6]} 55... Kg2 {[%clk
0:00:41.4]} 56. Qg4+ {[%clk 0:00:11.2]} 1-0

[Event "*** SCC Grand Prix: Titled Tuesday Blitz"]
[Site "Chess.com"]
[Date "2020.08.11"]
[Round "3"]
[White "GOGIEFF"]
[Black "GoltsevDmitry2000"]
[Result "0-1"]
[WhiteElo "2857"]
[BlackElo "2613"]
[TimeControl "180+1"]
[EndTime "10:29:42 PDT"]
[Termination "GoltsevDmitry2000 won on time"]

1. d4 {[%clk 0:03:00.9]} 1... Nf6 {[%clk 0:02:59.7]} 2. c4 {[%clk 0:03:00.7]}
2... e6 {[%clk 0:02:59.6]} 3. Nc3 {[%clk 0:03:00.5]} 3... Bb4 {[%clk 0:02:58.5]}
4. Qc2 {[%clk 0:03:00.5]} 4... Qe7 {[%clk 0:02:57.5]} 5. Bg5 {[%clk 0:02:58.1]}
5... h6 {[%clk 0:02:56.2]} 6. Bh4 {[%clk 0:02:57.6]} 6... b6 {[%clk 0:02:56.3]}
7. e3 {[%clk 0:02:57.3]} 7... Bb7 {[%clk 0:02:56.3]} 8. Ne2 {[%clk 0:02:56.8]}
8... O-O {[%clk 0:02:53]} 9. a3 {[%clk 0:02:56.1]} 9... Bxc3+ {[%clk 0:02:50.2]}
10. Nxc3 {[%clk 0:02:57]} 10... d6 {[%clk 0:02:47.5]} 11. Be2 {[%clk 0:02:50.8]}
11... g5 {[%clk 0:02:30.7]} 12. Bg3 {[%clk 0:02:47.4]} 12... Bxg2 {[%clk
0:02:29.2]} 13. Rg1 {[%clk 0:02:47.3]} 13... Bh3 {[%clk 0:02:26.7]} 14. f4
{[%clk 0:02:37]} 14... Bf5 {[%clk 0:01:29.1]} 15. e4 {[%clk 0:02:29.4]} 15...
Bg6 {[%clk 0:01:28.7]} 16. fxg5 {[%clk 0:02:25.7]} 16... hxg5 {[%clk 0:01:29.6]}
17. h4 {[%clk 0:02:16.6]} 17... d5 {[%clk 0:01:29.6]} 18. hxg5 {[%clk 0:01:28]}
18... Nxe4 {[%clk 0:01:26.6]} 19. Bd3 {[%clk 0:01:07.6]} 19... Qxg5 {[%clk
0:01:06.3]} 20. Bxe4 {[%clk 0:00:55.5]} 20... dxe4 {[%clk 0:00:54.4]} 21. Qh2
{[%clk 0:00:41.5]} 21... Qe3+ {[%clk 0:00:10.8]} 22. Ne2 {[%clk 0:00:40.4]}
22... Nd7 {[%clk 0:00:11.2]} 23. Bf4 {[%clk 0:00:37.8]} 23... Qf3 {[%clk
0:00:09.9]} 24. O-O-O {[%clk 0:00:29.6]} 24... e3 {[%clk 0:00:09.2]} 25. Qh6
{[%clk 0:00:19.5]} 25... Qe4 {[%clk 0:00:09.1]} 26. Rxg6+ {[%clk 0:00:18.8]}
26... fxg6 {[%clk 0:00:09.9]} 27. Rg1 {[%clk 0:00:18.4]} 27... Kf7 {[%clk
0:00:09.3]} 28. Qh7+ {[%clk 0:00:15.4]} 28... Ke8 {[%clk 0:00:09.8]} 29. Rxg6
{[%clk 0:00:15.9]} 29... Nf6 {[%clk 0:00:09.4]} 30. Qh6 {[%clk 0:00:13.9]} 30...
Qf5 {[%clk 0:00:08.1]} 31. Bxe3 {[%clk 0:00:11.4]} 31... Ng4 {[%clk 0:00:06.6]}
32. Rxe6+ {[%clk 0:00:07.3]} 32... Kd7 {[%clk 0:00:06.7]} 33. Qg7+ {[%clk
0:00:07.7]} 33... Rf7 {[%clk 0:00:06.6]} 0-1

[Event "*** SCC Grand Prix: Titled Tuesday Blitz"]
[Site "Chess.com"]
[Date "2020.08.11"]
[Round "3"]
[White "Chernobay_Artem"]
[Black "icychess54"]
[Result "0-1"]
[WhiteElo "2498"]
[BlackElo "2232"]
[TimeControl "180+1"]
[EndTime "10:29:42 PDT"]
[Termination "icychess54 won on time"]

1. d4 {[%clk 0:03:00.9]} 1... d5 {[%clk 0:02:59.5]} 2. c4 {[%clk 0:02:59.3]}
2... c6 {[%clk 0:02:59.8]} 3. Nf3 {[%clk 0:02:59]} 3... Nf6 {[%clk 0:02:59.6]}
4. Nc3 {[%clk 0:02:58.7]} 4... e6 {[%clk 0:03:00]} 5. Bg5 {[%clk 0:02:55.6]}
5... Nbd7 {[%clk 0:03:00.1]} 6. e3 {[%clk 0:02:55.5]} 6... Qa5 {[%clk
0:03:00.5]} 7. Nd2 {[%clk 0:02:55.9]} 7... Bb4 {[%clk 0:03:00.1]} 8. Qc2 {[%clk
0:02:55.2]} 8... Ne4 {[%clk 0:02:58.9]} 9. Ndxe4 {[%clk 0:02:53.5]} 9... dxe4
{[%clk 0:02:58.6]} 10. Bf4 {[%clk 0:02:53.1]} 10... e5 {[%clk 0:02:52.4]} 11.
dxe5 {[%clk 0:02:51.8]} 11... Nxe5 {[%clk 0:02:52.8]} 12. Be2 {[%clk 0:02:50.5]}
12... O-O {[%clk 0:02:45.2]} 13. O-O {[%clk 0:02:49]} 13... Bxc3 {[%clk
0:02:42.7]} 14. bxc3 {[%clk 0:02:31.6]} 14... Bf5 {[%clk 0:02:37.3]} 15. Rfd1
{[%clk 0:02:22.5]} 15... Rad8 {[%clk 0:02:16.3]} 16. Rd4 {[%clk 0:02:19.6]}
16... Nd3 {[%clk 0:01:47.8]} 17. Bg3 {[%clk 0:01:50]} 17... c5 {[%clk
0:01:28.4]} 18. Rd5 {[%clk 0:01:45.4]} 18... Rxd5 {[%clk 0:01:28.2]} 19. cxd5
{[%clk 0:01:43.6]} 19... c4 {[%clk 0:01:28.8]} 20. d6 {[%clk 0:01:40]} 20... Rd8
{[%clk 0:01:21.5]} 21. Rb1 {[%clk 0:01:38.2]} 21... b5 {[%clk 0:01:02.5]} 22. h3
{[%clk 0:01:08]} 22... a6 {[%clk 0:01:00.2]} 23. Bg4 {[%clk 0:01:05.9]} 23...
Bxg4 {[%clk 0:00:52.5]} 24. hxg4 {[%clk 0:01:06.8]} 24... Qa3 {[%clk 0:00:47.7]}
25. Rf1 {[%clk 0:00:43.6]} 25... f6 {[%clk 0:00:41]} 26. g5 {[%clk 0:00:38.8]}
26... f5 {[%clk 0:00:35.7]} 27. f3 {[%clk 0:00:32.3]} 27... Qc5 {[%clk
0:00:28.7]} 28. Kh1 {[%clk 0:00:05.5]} 28... Qxe3 {[%clk 0:00:25.4]} 29. Kh2
{[%clk 0:00:02.3]} 29... f4 {[%clk 0:00:19.3]} 30. Bh4 {[%clk 0:00:02.4]} 30...
Rxd6 {[%clk 0:00:15]} 31. fxe4 {[%clk 0:00:02]} 31... Qxe4 {[%clk 0:00:15.9]}
32. Rf3 {[%clk 0:00:01.8]} 32... Qf5 {[%clk 0:00:12.8]} 33. Qe2 {[%clk
0:00:01.8]} 33... Rd8 {[%clk 0:00:12]} 34. Qf1 {[%clk 0:00:02.3]} 34... Qg4
{[%clk 0:00:11.4]} 35. Rh3 {[%clk 0:00:01.3]} 35... Re8 {[%clk 0:00:10.5]} 36.
Qf3 {[%clk 0:00:01.5]} 36... Qxf3 {[%clk 0:00:09.8]} 37. Rxf3 {[%clk 0:00:01.9]}
37... Re2 {[%clk 0:00:10.7]} 0-1